Workbook

Sheet Summary of Funding (hidden)
A1: Date Issued: 4th July 2022 | H1: Last amended: 1st July 2022
A2: COVENTRY CITY COUNCIL
A3: 2022/23 Funding Allocations for Schools | N3: 25
A4: INDICATIVE Summary of Funding
A6: =VLOOKUP(("P"&N3),[5]Formula!$A$10:$X$96,3,FALSE) -> Howes | N6: Checks
A9: =IF((N32+N33)=0,"","***ERROR - CALCULATED ADJUSTMENT DOES NOT EQUAL ACTUAL ***") -> 
A10: Main Funding Elements
A12: School Budget Share 2022/23 | F12: ='Budget Share Statement'!K62 -> 740023.549 | N12: =F12-'Budget Share Statement'!K62 -> 0
A14: Indicative Early Years Funding 2022/23* (to be updated) | F14: ='EYSFF statement'!K29 -> 30641.86476 | N14: =F14-'EYSFF statement'!K29 -> 0
H16: =SUM(F12,F14) -> 770665.4138 | N16: =N12+N14 -> 0
A18: Other 2022/23 Funding Elements
A20: Indicative Pupil Premium Grant † (excludes LAC & EYPP elements) | F20: =VLOOKUP(("P"&$N$3),[13]Allocations!$A$6:$W$123,22,FALSE) -> 64735
A22: Indicative High Needs Top-up Funding § | F22: =VLOOKUP(("P"&$N$3),[14]PupilNosAutTerm!$A$2:$E$108,5,FALSE) -> 52500
A24: Class Size Funding | F24: =VLOOKUP($N$3,'[15]Class size'!$A$10:$N$95,14,FALSE) -> 13255.22944
A26: In-year Admissions Funding | F26: =VLOOKUP("P"&$N$3,'[15]In-year admissions'!$A$6:$M$116,13,FALSE) -> 4675.11
A28: Disproportionate SEN | F28: =-VLOOKUP(("P"&$N$3),[16]Sheet1!$C$2:$AC$110,24,FALSE) -> 20144.12067
H30: =F20+F22+F24+F26+F28 -> 155309.4601
A32: Total Revenue Resources | H32: =H16+H30 -> 925974.8739 | N32: =N12+N14+N20+N22+N24+N16 -> 0
N33: =ROUND(('Budget Share Statement'!O62+'De-delegation'!O25+'Minimum Funding Level'!O28+'Funding Floor'!N42+'MFG Calculation'!N56),5) -> 0
A35: Notes
A36: This funding summary is intended to give you an overview of the resources allocated to the school for the financial year 2022/23.
A37: Please ensure that you read this budget share pack in conjunction with the explanatory notes which are available to download online.
A39: * Early Years funding has been updated to reflect the summer term census data - please see the EYSFF statement for further detail.
A40: † Pupil Premium Funding is indicative based on the Qtr 1 22-23 allocations as per the Oct-21 census.
A41: § Indicative High Needs Top-up Funding has been calculated based on your number of Band 5 & Band 6 pupils as at 17/12/21. This
A42: figure will change based on the real time movement of pupils during the 2022/23 financial year and so will not be final until March 2023.

Sheet Budget Share Statement (hidden)
A1: ='Summary of Funding'!A1 -> Date Issued: 4th July 2022 | K1: ='Summary of Funding'!H1 -> Last amended: 1st July 2022
A2: COVENTRY CITY COUNCIL
A3: ='Summary of Funding'!A3:H3 -> 2022/23 Funding Allocations for Schools | N3: ='Summary of Funding'!N3 -> 25
A4: INDICATIVE School Budget Share Statement
A6: =VLOOKUP(("P"&N3),[5]Formula!$A$10:$X$96,3,FALSE) -> Howes | O6: Checks
A10: Factors | C10: Factor Measurement | G10: Number of Units | I10: Funding Per Unit | K10: Funding Allocated
I11: £ | K11: £
A12: Basic Entitlement
A13: Funding | C13: Pupil Number: (Oct-21 Census) | G13: =VLOOKUP(("P"&$N$3),[10]Data!$A$8:$AH$94,4,FALSE) -> 136 | I13: =[10]Formula!$D$5 -> 3238.19408 | K13: =G13*I13 -> 440394.3948 | O13: =VLOOKUP(("P"&$N$3),[10]Formula!$A$9:$AC$95,4,FALSE)-K13 -> 0
K15: =K13 -> 440394.3948
A18: Deprivation Funding | C18: IDACI Band G: Pupil's IDACI < 0.20 | G18: =VLOOKUP(("P"&$N$3),[10]Data!$A$8:$AH$94,22,FALSE) -> 97 | I18: 0 | K18: =G18*I18 -> 0
C19: IDACI Band F: 0.20 ≤ Pupil's IDACI < 0.25 | G19: =VLOOKUP(("P"&$N$3),[10]Data!$A$8:$AH$94,23,FALSE) -> 25 | I19: =[10]Formula!$N$5 -> 220.7436 | K19: =G19*I19 -> 5518.59 | O19: =VLOOKUP(("P"&$N$3),[10]Formula!$A$9:$AC$95,14,FALSE)-K19 -> 0
C20: IDACI Band E: 0.25 ≤ Pupil's IDACI < 0.30 | G20: =VLOOKUP(("P"&$N$3),[10]Data!$A$8:$AH$94,24,FALSE) -> 5 | I20: =[10]Formula!$O$5 -> 270.9126 | K20: 1354.563 | O20: =VLOOKUP(("P"&$N$3),[10]Formula!$A$9:$AC$95,15,FALSE)-K20 -> 0
C21: IDACI Band D: 0.30 ≤ Pupil's IDACI < 0.35 | G21: =VLOOKUP(("P"&$N$3),[10]Data!$A$8:$AH$94,25,FALSE) -> 1 | I21: =[10]Formula!$P$5 -> 421.4196 | K21: 421.4196 | O21: =VLOOKUP(("P"&$N$3),[10]Formula!$A$9:$AC$95,16,FALSE)-K21 -> 0
C22: IDACI Band C: 0.35 ≤ Pupil's IDACI < 0.40 | G22: =VLOOKUP(("P"&$N$3),[10]Data!$A$8:$AH$94,26,FALSE) -> 0 | I22: =[10]Formula!$Q$5 -> 461.5548 | K22: 0 | O22: =VLOOKUP(("P"&$N$3),[10]Formula!$A$9:$AC$95,17,FALSE)-K22 -> 0
C23: IDACI Band B: 0.40 ≤ Pupil's IDACI < 0.50 | G23: =VLOOKUP(("P"&$N$3),[10]Data!$A$8:$AH$94,27,FALSE) -> 6 | I23: =[10]Formula!$R$5 -> 491.6562 | K23: 2949.9372 | O23: =VLOOKUP(("P"&$N$3),[10]Formula!$A$9:$AC$95,18,FALSE)-K23 -> 0
C24: IDACI Band A: 0.50 ≤ Pupil's IDACI ≤ 1.00 | G24: =VLOOKUP(("P"&$N$3),[10]Data!$A$8:$AH$94,28,FALSE) -> 2 | I24: =[10]Formula!$S$5 -> 642.1632 | K24: 1284.3264 | O24: =VLOOKUP(("P"&$N$3),[10]Formula!$A$9:$AC$95,19,FALSE)-K24 -> 0
C25: Free School Meals: (Oct-19 FSM Eligibility) | G25: =VLOOKUP(("P"&$N$3),[10]Data!$A$8:$AH$94,20,FALSE) -> 44 | I25: =[10]Formula!$E$5 -> 471.5886 | K25: 20749.8984 | O25: =VLOOKUP(("P"&$N$3),[10]Formula!$A$9:$AC$95,5,FALSE)-K25 -> 0
C26: Free School Meals Ever 6: (Oct-19 FSM Eligibility) | G26: =VLOOKUP(("P"&$N$3),[10]Data!$A$8:$AH$94,21,FALSE) -> 47 | I26: =[10]Formula!$F$5 -> 591.9942 | K26: 27823.7274 | O26: =VLOOKUP(("P"&$N$3),[10]Formula!$A$9:$AC$95,6,FALSE)-K26 -> 0
K28: =SUM(K18:K26) -> 60102.462
A30: Prior Attainment Funding | C30: No.pupils not reaching expected level of development | G30: =VLOOKUP(("P"&$N$3),[10]Data!$A$8:$AH$94,29,FALSE) -> 51.92727273 | I30: =[10]Formula!$G$5 -> 1133.8194 | K30: =G30*I30 -> 58876.14921 | O30: =VLOOKUP(("P"&$N$3),[10]Formula!$A$9:$AC$95,7,FALSE)-K30 -> 0
A32: English as an Additional
A33: Language Funding | C33: No. EAL in compulsory education for 3 years or less | G33: =VLOOKUP(("P"&$N$3),[10]Data!$A$8:$AH$94,30,FALSE) -> 18.5982906 | I33: =[10]Formula!$H$5 -> 566.9097 | K33: =G33*I33 -> 10543.55134 | O33: =VLOOKUP(("P"&$N$3),[10]Formula!$A$9:$AC$95,8,FALSE)-K33 -> 0
A35: Pupil Mobility Funding | C35: No.pupils in last 3 years who didn’t start school in Sept | G35: =VLOOKUP(("P"&$N$3),[10]Data!$A$8:$AH$94,31,FALSE) -> 2.84 | I35: =[10]Formula!$I$5 -> 928.1265 | K35: =G35*I35 -> 2635.87926 | O35: =VLOOKUP(("P"&$N$3),[10]Formula!$A$9:$AC$95,9,FALSE)-K35 -> 0
A37: Lump Sum | C37: One set amount for all schools | K37: =VLOOKUP(("P"&$N$3),[10]Formula!$A$9:$AC$95,10,FALSE) -> 121709.994 | O37: =VLOOKUP(("P"&$N$3),[10]Formula!$A$9:$AC$95,10,FALSE)-K37 -> 0
A39: Split Sites Funding | C39: Lump Sum | K39: =VLOOKUP(("P"&$N$3),[10]Formula!$A$9:$AC$95,12,FALSE) -> 0 | O39: =VLOOKUP(("P"&$N$3),[10]Formula!$A$9:$AC$95,12,FALSE)-K39 -> 0
A41: Rates Funding | C41: Estimated 2022/23 rates bill | H41: =VLOOKUP(("P"&$N$3),[10]Formula!$A$10:$AC$95,11,FALSE) -> 34048
C42: Adjustment for previous years charges | H42: 0 | K42: =H41+H42 -> 34048 | O42: =VLOOKUP(("P"&$N$3),[10]Formula!$A$9:$AC$95,11,FALSE)-K42 -> 0
A45: Total Formula Factor Funding | K45: =K15+K28+K33+K35+K37+K39+K42+K30 -> 728310.4306 | O45: =VLOOKUP(("P"&$N$3),[10]Formula!$A$9:$AC$95,21,FALSE)-K45 -> 0
A47: Minimum Per Pupil (MPP) Funding Level Allocation | H47: ='Minimum Funding Level'!J28 -> 0 | O47: =VLOOKUP(("P"&$N$3),[10]Formula!$A$9:$AC$95,22,FALSE)-H47 -> 0
A49: Total Funding Allocated before Minimum Funding Guarantee (MFG) | K49: =K45+H47 -> 728310.4306 | O49: =VLOOKUP(("P"&$N$3),[10]Formula!$A$9:$AC$95,23,FALSE)-K49 -> 0
A51: MFG Protection (additional funding/top-slice) | H51: ='MFG Calculation'!J63 -> 20070.98016 | O51: =VLOOKUP(("P"&$N$3),[10]Formula!$A$9:$AC$95,26,FALSE)-H51 -> 1.164153218e-10
A53: Total Funding Allocated after protection Arrangements | K53: =K49+H51 -> 748381.4108 | O53: =VLOOKUP(("P"&$N$3),[10]Formula!$A$9:$AC$95,27,FALSE)-K53 -> 0
A57: 22/23 De-delegation | C57: See separate 'De-delegation' sheet | H57: ='De-delegation'!K25 -> -5545.861801 | O57: =VLOOKUP(("P"&$N$3),[10]Formula!$A$9:$AC$95,28,FALSE)-H57 -> 0
A59: 22/23 Risk Protection Arrangement Deduction | H59: =-IFERROR(INDEX('[9]LAMS Data'!$AG$9:$AG$34,MATCH($N$3,'[9]LAMS Data'!$A$9:$A$34,0)),0) -> -2812
A62: Total Funding Allocated after MFG, De-delegation and RPA Adjustment | K62: =K53+H57+H59 -> 740023.549 | O62: =VLOOKUP(("P"&$N$3),[10]Formula!$A$9:$AC$95,29,FALSE)-K62-IFERROR(INDEX('[9]LAMS Data'!$AG$9:$AG$34,MATCH($N$3,'[9]LAMS Data'!$A$9:$A$34,0)),0) -> 0
A64: Notes
A65: If you have chosen to join the DfE Risk Protection Arrangement, the value of your charge is deducted from your budget share when the
A66: charge is known.

Sheet Minimum Funding Level (hidden)
A1: ='Summary of Funding'!A1 -> Date Issued: 4th July 2022 | K1: ='Summary of Funding'!H1 -> Last amended: 1st July 2022
A2: COVENTRY CITY COUNCIL
A3: ='Summary of Funding'!A3:H3 -> 2022/23 Funding Allocations for Schools | N3: ='Summary of Funding'!N3 -> 25
A4: Calculation of Minimum Per Pupil (MPP) Funding Level
A6: =VLOOKUP(("P"&N3),[5]Formula!$A$10:$X$96,3,FALSE) -> Howes | N6: Checks
G9: £ | J9: £
A10: NFF Minimum per pupil funding rate | G10: ='[10]Minimum Per Pupil'!$D$3 -> 4265 | N10: ='[10]Minimum Per Pupil'!$D$3-G10 -> 0
A12: October 2021 Pupil Numbers | G12: =VLOOKUP(("P"&$N$3),'[10]Minimum Per Pupil'!$A$4:$N$91,4,FALSE) -> 136 | N12: =VLOOKUP(("P"&$N$3),'[10]Minimum Per Pupil'!$A$4:$N$91,4,FALSE)-G12 -> 0
A14: Minimum Funding Level (MFL) | F14: [A] | J14: =G10*G12 -> 580040 | N14: =VLOOKUP(("P"&$N$3),'[10]Minimum Per Pupil'!$A$4:$N$91,5,FALSE)-J14 -> 0
A17: Total Formula Factor Funding | G17: ='Budget Share Statement'!K45 -> 728310.4306 | N17: =VLOOKUP(("P"&$N$3),'[10]Minimum Per Pupil'!$A$4:$N$91,7,FALSE)-G17 -> 0
A19: Less: exempt premises factors
A20: 2022/23 NNDR | G20: =VLOOKUP(("P"&$N$3),[10]Formula!$A$10:$AC$95,11,FALSE) -> 34048 | N20: =VLOOKUP(("P"&$N$3),'[10]Minimum Per Pupil'!$A$4:$N$91,8,FALSE)-G20 -> 0
A22: 2022/23 Split Site | G22: =VLOOKUP(("P"&$N$3),[10]Formula!$A$10:$AC$95,12,FALSE) -> 0 | N22: =VLOOKUP(("P"&$N$3),'[10]Minimum Per Pupil'!$A$4:$N$91,9,FALSE)-G22 -> 0
A25: 2022/23 Funding for MFL comparison | F25: [B] | J25: =G17-SUM(G20:H23) -> 694262.4306 | N25: =VLOOKUP(("P"&$N$3),'[10]Minimum Per Pupil'!$A$4:$N$91,11,FALSE)-J25 -> 0
A28: MFL shortfall to be funded [B] - [A] | F28: = [B] - [A] | J28: =IF(J25<J14,J14-J25,0) -> 0 | N28: =VLOOKUP(("P"&$N$3),'[10]Minimum Per Pupil'!$A$4:$N$91,13,FALSE)-J28 -> 0

Sheet MFG Calculation (hidden)
A1: ='Summary of Funding'!A1 -> Date Issued: 4th July 2022 | K1: ='Summary of Funding'!H1 -> Last amended: 1st July 2022
A2: COVENTRY CITY COUNCIL
A3: ='Summary of Funding'!A3:H3 -> 2022/23 Funding Allocations for Schools | N3: ='Summary of Funding'!N3 -> 25
A4: Calculation of Minimum Funding Guarantee
A6: =VLOOKUP(("P"&N3),[5]Formula!$A$10:$X$96,3,FALSE) -> Howes | N6: Checks
A9: Baseline | C9: =IF(N56>=0," ","DOES NOT BALANCE") ->  | G9: £ | J9: £
A11: Final Budget Share 2021/22 (Excluding Early Years) | J11: =VLOOKUP(("P"&$N$3),'[10]Minimum Funding Guarantee'!$A$4:$AK$91,9,FALSE) -> 766710.6727
A13: Less:
A14: 2021/22 Rates Funding | G14: =VLOOKUP(("P"&$N$3),'[10]Minimum Funding Guarantee'!$A$4:$AK$91,11,FALSE) -> 34048 | H14: =VLOOKUP(("P"&$N$3),'[8]Minimum Funding Guarantee'!$A$4:$AK$91,9,FALSE) -> 809720.2767
A16: 2021/22 Lump Sum | G16: =VLOOKUP(("P"&$N$3),'[10]Minimum Funding Guarantee'!$A$4:$AK$91,10,FALSE) -> 121709.994 | H16: =VLOOKUP(("P"&$N$3),'[8]Minimum Funding Guarantee'!$A$4:$AK$91,9,FALSE) -> 809720.2767
A18: 2021/22 Education Improvement Commissioning Pot | G18: =VLOOKUP(("P"&$N$3),'[10]Minimum Funding Guarantee'!$A$4:$AK$91,12,FALSE) -> 1491.655076 | H18: =VLOOKUP(("P"&$N$3),'[8]Minimum Funding Guarantee'!$A$4:$AK$91,9,FALSE) -> 809720.2767
A20: 2021/22 Split Site | G20: =VLOOKUP(("P"&$N$3),'[10]Minimum Funding Guarantee'!$A$4:$AK$91,13,FALSE) -> 0 | H20: =VLOOKUP(("P"&$N$3),'[8]Minimum Funding Guarantee'!$A$4:$AK$91,9,FALSE) -> 809720.2767 | J20: =-SUM(G14,G16,G18,G20) -> -157249.6491
A22: Adjusted Budget Share 2021/22 | J22: =J11+J20 -> 609461.0236 | N22: =VLOOKUP(("P"&$N$3),'[10]Minimum Funding Guarantee'!$A$4:$AK$91,15,FALSE)-J22 -> 0
A26: Guaranteed Unit Funding Calculation | J26: £
A28: Adjusted Budget Share 2021/22 | G28: =J22 -> 609461.0236
A30: October 2020 Pupil Number | G30: =VLOOKUP(("P"&$N$3),'[10]Minimum Funding Guarantee'!$A$4:$AK$91,5,FALSE) -> 143 | H30: =VLOOKUP(("P"&$N$3),'[8]Minimum Funding Guarantee'!$A$4:$AK$91,9,FALSE) -> 809720.2767
A32: Adjusted Budget Share 2021/22 Per Pupil | J32: =G28/G30 -> 4261.9652 | N32: =VLOOKUP(("P"&$N$3),'[10]Minimum Funding Guarantee'!$A$4:$AK$91,16,FALSE)-J32 -> 0
A34: Minimum Funding Guarantee Protection Level | G34: ='[10]Minimum Funding Guarantee'!$R$3-1 -> 0.02
A36: 2022/23 Guaranteed Unit Funding | J36: =J32*(1+G34) -> 4347.204504
A39: Guaranteed Funding Level Calculation
A41: 2022/23 Guaranteed Unit Funding | G41: =J36 -> 4347.204504
A43: October 2021 Pupil Number | G43: =VLOOKUP(("P"&$N$3),'[10]Minimum Funding Guarantee'!$A$4:$AK$91,6,FALSE) -> 136 | H43: =VLOOKUP(("P"&$N$3),'[8]Minimum Funding Guarantee'!$A$4:$AK$91,9,FALSE) -> 809720.2767
A45: 2022/23 Guaranteed Funding Level | J45: =G41*G43 -> 591219.8125
A47: Add:
A48: 2022/23 Rates | G48: =VLOOKUP(("P"&$N$3),'[10]Minimum Funding Guarantee'!$A$4:$AK$91,27,FALSE) -> 34048 | H48: =VLOOKUP(("P"&$N$3),'[8]Minimum Funding Guarantee'!$A$4:$AK$91,9,FALSE) -> 809720.2767
A50: 2022/23 Lump Sum | G50: =VLOOKUP(("P"&$N$3),'[10]Minimum Funding Guarantee'!$A$4:$AK$91,26,FALSE) -> 121709.994 | H50: =VLOOKUP(("P"&$N$3),'[8]Minimum Funding Guarantee'!$A$4:$AK$91,9,FALSE) -> 809720.2767
A52: 2022/23 Split Site | G52: =VLOOKUP(("P"&$N$3),'[10]Minimum Funding Guarantee'!$A$4:$AK$91,29,FALSE) -> 0 | H52: =VLOOKUP(("P"&$N$3),'[8]Minimum Funding Guarantee'!$A$4:$AK$91,9,FALSE) -> 809720.2767
A54: 2022/23 Education Improvement Commissioning Pot | G54: =VLOOKUP(("P"&$N$3),'[10]Minimum Funding Guarantee'!$A$4:$AK$91,28,FALSE) -> 1403.604264 | H54: =VLOOKUP(("P"&$N$3),'[8]Minimum Funding Guarantee'!$A$4:$AK$91,9,FALSE) -> 809720.2767 | J54: =SUM(G48,G50,G52,G54) -> 157161.5983
A56: 2022/23 Minimum Funding Guarantee | J56: =J45+J54 -> 748381.4108 | N56: =VLOOKUP(("P"&$N$3),'[10]Minimum Funding Guarantee'!$A$4:$AK$91,19,FALSE)-J56 -> 0
A59: 2022/23 Minimum Funding Guarantee | G59: =J45+J54 -> 748381.4108
A61: 2022/23 Total Formula Funding allocated pre-MFG | G61: ='Budget Share Statement'!K49 -> 728310.4306
A63: 2022/23 MFG Protection (additional funding/top-slice) | J63: =IF(G59>G61,G59-G61,0) -> 20070.98016 | N63: =VLOOKUP(("P"&$N$3),'[10]Minimum Funding Guarantee'!$A$4:$AK$91,23,FALSE)-J63 -> 1.164153218e-10
A65: Note:
A66: The Minimum Funding Guarantee is compared with your Budget Share before 2022/23 de-delegated budgets are removed.

Sheet De-delegation (hidden)
A1: ='Summary of Funding'!A1 -> Date Issued: 4th July 2022 | K1: ='Summary of Funding'!H1 -> Last amended: 1st July 2022
A2: COVENTRY CITY COUNCIL
A3: ='Summary of Funding'!A3:H3 -> 2022/23 Funding Allocations for Schools | N3: ='Summary of Funding'!N3 -> 25
A4: ="De-Delegation Detail" -> De-Delegation Detail
A6: =VLOOKUP(("P"&N3),[5]Formula!$A$10:$X$96,3,FALSE) -> Howes | O6: Checks
A10: Factors | C10: Factor Measurement | G10: Number of Units | I10: Funding Per Unit | K10: Funding Allocated
I11: £ | K11: £
A12: Basic Entitlement
A13: Funding
A14: Maternity Cover | C14: Pupil Number: (Oct-21 Census) | G14: =VLOOKUP(("P"&$N$3),[10]Data!$A$8:$AH$94,7,FALSE) -> 136 | I14: =-'[10]New Del & De-Del'!$G$9 -> -26.16 | K14: =G14*I14 -> -3557.76 | O14: =VLOOKUP(("P"&N3),'[10]New Del & De-Del'!$A$20:$N$106,11,FALSE)+K14 -> 0
A15: Trade Union Facility | C15: Pupil Number: (Oct-21 Census) | G15: =VLOOKUP(("P"&$N$3),[10]Data!$A$8:$AH$94,7,FALSE) -> 136 | I15: =-'[10]New Del & De-Del'!$G$10 -> -4 | K15: =G15*I15 -> -544 | O15: =VLOOKUP(("P"&N3),'[10]New Del & De-Del'!$A$20:$N$106,12,FALSE)+K15 -> 0
K17: =SUM(K14:K15) -> -4101.76 | O17: =VLOOKUP(("P"&N3),'[10]New Del & De-Del'!$A$20:$N$106,4,FALSE)+K17 -> 0
A18: Deprivation Funding
A19: Free School Meal Eligibility | C19: Free School Meals: (Oct-21 FSM Eligibility) | G19: =VLOOKUP(("P"&$N$3),[10]Data!$A$8:$AH$94,20,FALSE) -> 44 | I19: =-'[10]New Del & De-Del'!$G$7 -> -2.844606114 | K19: =G19*I19 -> -125.162669 | O19: =VLOOKUP(("P"&N3),'[10]New Del & De-Del'!$A$20:$N$106,5,FALSE)+K19 -> 0
A21: English as an Additional
A22: Language Funding
A23: EMAS: New Arrivals Grant | C23: EAL3: EAL in child's 1st 3 years of compulsory education | G23: =VLOOKUP(("P"&$N$3),[10]Data!$A$8:$AH$94,30,FALSE) -> 18.5982906 | I23: =-'[10]New Del & De-Del'!$G$12 -> -70.91722355 | K23: =G23*I23 -> -1318.939132 | O23: =VLOOKUP(("P"&N3),'[10]New Del & De-Del'!$A$20:$N$106,6,FALSE)+K23 -> 0
A25: Total De-Delegation | K25: =K17+K19+K23 -> -5545.861801 | O25: =VLOOKUP(("P"&N3),'[10]New Del & De-Del'!$A$20:$N$106,8,FALSE)+K25 -> 0
A28: Notes
A29: Coventry Education Improvement Strategy funding is no longer part of the De-Delegation process. Instead schools will be invoiced for the
A30: amount of funding that they receive for this service. Full details can be found on the January Schools Forum report.

Sheet EYSFF statement (hidden)
A1: ='Summary of Funding'!A1 -> Date Issued: 4th July 2022 | K1: ='Summary of Funding'!H1 -> Last amended: 1st July 2022
A2: COVENTRY CITY COUNCIL
A3: ='Summary of Funding'!A3:H3 -> 2022/23 Funding Allocations for Schools | N3: ='Summary of Funding'!N3 -> 25
A4: INDICATIVE Early Years Funding Statement
A6: =VLOOKUP(("P"&N3),[5]Formula!$A$10:$X$96,3,FALSE) -> Howes | N6: Checks
A9: School Data
A11: IDACI based on January 2022 census | G11: =VLOOKUP(("P"&$N$3),'[10]Early Years Formula'!$A$10:$H$93,5,FALSE) -> 0.1209
A12: 2022-23 Base Rate | G12: =VLOOKUP(("P"&$N$3),'[10]Early Years Formula'!$A$10:$H$93,6,FALSE) -> 4.21
A13: 2022-23 Deprivation Rate | G13: =VLOOKUP(("P"&$N$3),'[10]Early Years Formula'!$A$10:$H$93,7,FALSE) -> 1.26
E16: Summer Term 2022 | G16: Autumn Term 2022 | I16: Spring Term 2023 | K16: Whole Financial Year
E17: (12 Weeks) | G17: (14 Weeks) | I17: (12 Weeks) | K17: (38 Weeks)
E18: (Per May 22 census) | G18: (Per Oct 21 census) | I18: (Per Jan 22 census)
A19: Formula Factors | E19: Updated | G19: To be updated | I19: To be updated
A20: Free Entitlement Headcount | E20: =VLOOKUP(("P"&$N$3),'[10]Early Years Formula'!$A$10:$O$93,9,FALSE) -> 12 | G20: =VLOOKUP(("P"&$N$3),'[10]Early Years Formula'!$A$10:$AD$93,16,FALSE) -> 8 | I20: =VLOOKUP(("P"&$N$3),'[10]Early Years Formula'!$A$10:$AD$93,23,FALSE) -> 12
A21: Free Entitlement Hours Provided | E21: =VLOOKUP(("P"&$N$3),'[10]Early Years Formula'!$A$10:$O$93,8,FALSE) -> 2160 | G21: =VLOOKUP(("P"&$N$3),'[10]Early Years Formula'!$A$10:$AD$93,15,FALSE) -> 1680 | I21: =VLOOKUP(("P"&$N$3),'[10]Early Years Formula'!$A$10:$AD$93,22,FALSE) -> 2040
A22: Extended Entitlement Headcount | E22: =VLOOKUP(("P"&$N$3),'[10]Early Years Formula'!$A$10:$O$93,11,FALSE) -> 2 | G22: =VLOOKUP(("P"&$N$3),'[10]Early Years Formula'!$A$10:$AD$93,18,FALSE) -> 2 | I22: =VLOOKUP(("P"&$N$3),'[10]Early Years Formula'!$A$10:$AD$93,25,FALSE) -> 2
A23: Extended Entitlement Hours Provided | E23: =VLOOKUP(("P"&$N$3),'[10]Early Years Formula'!$A$10:$O$93,10,FALSE) -> 360 | G23: =VLOOKUP(("P"&$N$3),'[10]Early Years Formula'!$A$10:$AD$93,17,FALSE) -> 420 | I23: =VLOOKUP(("P"&$N$3),'[10]Early Years Formula'!$A$10:$AD$93,24,FALSE) -> 360
A25: Base Rate Funding | E25: =(E21+E23)*$G12 -> 10609.2 | G25: =(G21+G23)*$G12 -> 8841 | I25: =(I21+I23)*$G12 -> 10104
A27: Deprivation Funding | E27: =IFERROR((E20+E22)*$G$13*15*12*$G$11,0) -> 383.88168 | G27: =IFERROR((G20+G22)*$G$13*15*14*$G$11,0) -> 319.9014 | I27: =IFERROR((I20+I22)*$G$13*15*12*$G$11,0) -> 383.88168
A29: Total 2022/23 Funding Under EYSFF (£) | E29: =E27+E25 -> 10993.08168 | G29: =G27+G25 -> 9160.9014 | I29: =I27+I25 -> 10487.88168 | K29: =E29+G29+I29 -> 30641.86476 | N29: =VLOOKUP(("P"&$N$3),'[10]Early Years Formula'!$A$10:$AD$93,29,FALSE)-K29 -> 0
A32: Note:
A33: This Early Years budget has been estimated based on full participation at the 21/22 census levels and 22/23 hourly rates
A35: At this point in time, you will have the best knowledge of relevant pupil numbers and as such are in the best position to estimate
A36: what the EYSFF funding position will be. Work with your SFO's to make an estimate and work through the financial implications.
A38: Your actual Early Years funding will be updated through the year to reflect the actual provision delivered as recorded on the
A39: Summer-22, Autumn-22 and Spring-23 school census information. As in previous years, this means that your Early Years
A40: funding will not be finalised until after the Spring 2023 census has been finalised.

Sheet Further Delegation Info (hidden)
A1: ='Summary of Funding'!A1 -> Date Issued: 4th July 2022 | H1: ='Summary of Funding'!H1 -> Last amended: 1st July 2022 | N1: ID
A2: COVENTRY CITY COUNCIL
A3: ='Summary of Funding'!A3:H3 -> 2022/23 Funding Allocations for Schools
A4: Further Delegation Information
A6: All Schools
A9: The 2013/14 School Funding Reform required local authorities to delegate some centrally retained DSG budgets to schools; those budgets are listed below in the columns headed "Delegated in 2013/14" for your information.
A11: For 2022/23 maintained schools have opted to return some of this funding to the Local Authority to continue central provision of the relevant services. The delegated budget available to each maintained school therefore excludes these returned budgets. The relevant amounts are listed below in the columns headed "De-delegation in 2021/22" for your reference.
A17: S251 line | B17: Further Delegation Areas | C17: Delegated in 2013/14 | F17: De-delegation in 2022/23
C18: Primary (all) £ | D18: Secondary (all) £ | E18: Total (all) £ | F18: Primary Maintained £ | G18: Secondary Maintained £ | H18: Total Maintained £
A19: 1.1.4 | B19: Free school meal eligibility | C19: 20899.32112 | D19: 11151.53862 | E19: 32050.85975 | F19: ='[11]New Del & De-Del'!$I$7 -> 13750.82596 | G19: 0 | H19: =SUM(F19:G19) -> 13750.82596
A20: 1.1.7 | B20: Licences/subscriptions | C20: 56639.72318 | D20: 35735.64289 | E20: 92375.36607 | F20: ='[11]New Del & De-Del'!$I$8 -> 0 | G20: 0 | H20: =SUM(F20:G20) -> 0
A21: 1.1.8 | B21: Maternity/special staffing suspension | C21: 356766.1768 | D21: 225094.1208 | E21: 581860.2976 | F21: ='[11]New Del & De-Del'!$I$9 -> 501591.84 | G21: 0 | H21: 501591.84
A22: 1.1.9 | B22: Trade Union facility | C22: 195944.4399 | D22: 123627.026 | E22: 319571.4659 | F22: ='[11]New Del & De-Del'!$I$10 -> 76696 | G22: 0 | H22: 76696
A23: 1.1.10 | B23: School Improvement | C23: 0 | D23: 0 | E23: 0 | F23: ='[11]New Del & De-Del'!$I$11 -> 0 | G23: 0 | H23: 0
A24: 1.1.3 | B24: Ethnic Minority Acheivement Service (EMAS) | C24: 991053 | D24: 284303 | E24: 1275356 | F24: ='[11]New Del & De-Del'!$I$12 -> 267459.6199 | G24: 0 | H24: 267459.6199
A25: 1.1.2 | B25: Behaviour support services | C25: 310504 | D25: 256781 | E25: 567285 | F25: =-'[11]New Del & De-Del'!$I$13 -> 0 | G25: =-'[6]New Del & De-Del'!$J13 -> 0 | H25: 0
B26: Totals | C26: =SUM(C19:C25) -> 1931806.661 | D26: 936692.3283 | E26: 2868498.989 | F26: 859498.2858 | G26: 0 | H26: 859498.2858 | J26: =H26-'[10]New Del & De-Del'!$I$14 -> 0

Sheet ISB (hidden)
A1: ='Summary of Funding'!A1 -> Date Issued: 4th July 2022 | F1: ='Summary of Funding'!H1 -> Last amended: 1st July 2022 | J1: ID
A2: COVENTRY CITY COUNCIL
A3: 2022/23 Funding Allocations for Schools
A5: Individual Schools Budget (ISB) 2022/23
A8: This page shows how the Individual Schools Budget (ISB), which is the total of all schools block delegated budget shares, has changed from the previous year. It shows the financial effect, in overall budget terms, of policy and funding decisions in terms of the increased or decreased level of resources for schools. The final ISB figure represents the total level of resources which go into the Fair Funding Formula to produce schools budget shares.
C14: Schools | D14: Schools
C15: Block | D15: Block
C16: (Primary) | D16: (Secondary)
C17: £ | D17: £
B19: FINAL ISB 2021/22 | C19: ='[12]PPR (New Blocks)'!$E$9 -> 142688600.8 | D19: ='[12]PPR (New Blocks)'!$F$9 -> 119603664.6
B21: Removal of 2021/22 expenditure funded by reserves | C21: ='[12]PPR (New Blocks)'!$E$11 -> -246164.8122 | D21: ='[12]PPR (New Blocks)'!$F$11 -> -203835.1878
B22: Removal of Implicit Growth | C22: ='[12]PPR (New Blocks)'!$E$14 -> -175223.3609
B24: Revised Base for 2021/22 | C24: =SUM(C19:C23) -> 142267212.6 | D24: =SUM(D19:D23) -> 119399829.4
B26: Resource Adjustments
B27: De-delegation adjustments | C27: ='[12]PPR (New Blocks)'!$E$22+'[12]PPR (New Blocks)'!$E$23 -> -10816.83337
B28: NFF - protection resource | C28: ='[12]PPR (New Blocks)'!$E$35 -> 2933825.496 | D28: ='[12]PPR (New Blocks)'!$F$35 -> 2788768.436
B30: Education Service PPR
B31: Pupil number changes | C31: ='[12]PPR (New Blocks)'!$E$56+'[12]PPR (New Blocks)'!$E$57+'[12]PPR (New Blocks)'!$E$58 -> -1151210.102 | D31: ='[12]PPR (New Blocks)'!$F$57+'[12]PPR (New Blocks)'!$F$58 -> 4961291.019
B32: PFI Factor Change | D32: ='[12]PPR (New Blocks)'!$F$36 -> 21180.23181
B33: National Non-Domestic Rates | C33: ='[12]PPR (New Blocks)'!$E$60 -> -92728.04404 | D33: ='[12]PPR (New Blocks)'!$F$60 -> 1760.859037
B34: Coventry School Improvement Strategy commisioning pot | C34: ='[12]PPR (New Blocks)'!$E$45 -> 240718.1312 | D34: ='[12]PPR (New Blocks)'!$F$45 -> 209281.8688
B36: FINAL ISB 2022/23 | C36: =SUM(C24:C35) -> 144187001.3 | D36: =SUM(D24:D35) -> 127382111.8
B38: Headroom/Efficiency Savings | C38: 0 | D38: 0
B40: FINAL ISB 2022/23 | C40: =SUM(C36:C39) -> 144187001.3 | D40: =SUM(D36:D39) -> 127382111.8
A45: If you have any queries about any of this information, please contact Paul Hammond 7697 2635

Sheet LogIn (hidden)
A1: User Name | B1: Password | C1: ID
A2: Alderman's Green | B2: NcR96N | C2: 1
A3: Aldermoor Farm | B3: 8UBcN4 | C3: 2
A4: Allesley | B4: uE98HX | C4: 3
A5: Allesley Hall | B5: c2r66H | C5: 4
A6: Broad Heath | B6: 94ctnJ | C6: 5
A7: Cannon Park | B7: 4V8gK4 | C7: 6
A8: Charter | B8: bHkpG8 | C8: 7
A9: Clifford Bridge | B9: VksmRa1a | C9: 8
A10: Coundon Primary | B10: 4Y428c | C10: 9
A11: Courthouse Green | B11: BE75nX1a | C11: 10
A12: Earlsdon | B12: ZkcST6 | C12: 11
A13: Eastern Green Junior | B13: 24x4Xc | C13: 12
A14: Edgewick | B14: R3kRR4 | C14: 13
A15: Ernesford Grange | B15: GKD5A2 | C15: 14
A16: Finham | B16: 9TWJzm1a | C16: 15
A17: Frederick Bird | B17: agw9kd | C17: 16
A18: Gosford Park | B18: cuxXcd | C18: 17
A19: Grange Farm | B19: V2DGxe | C19: 18
A20: Grangehurst | B20: aFbkW3 | C20: 19
A21: Hearsall | B21: 3JcVC31a | C21: 20
A22: Henley Green | B22: J5cwAZ | C22: 21
A23: Hill Farm Academy | B23: 8S7cc81a | C23: 22
A24: Holbrook | B24: GkEHwt | C24: 23
A25: Hollyfast | B25: D4N45K | C25: 24
A26: Howes | B26: ccAeb5 | C26: 25
A27: John Gulson | B27: 26cA4V | C27: 26
A28: John Shelton | B28: B8cds4 | C28: 27
A29: Joseph Cash | B29: 33GsH6 | C29: 28
A30: Keresley Grange | B30: RPPyVD1a | C30: 29
A31: Limbrick Wood | B31: uk7NEQ | C31: 30
A32: Little Heath | B32: Av3kpb | C32: 31
A33: Longford Park | B33: 79byb7 | C33: 32
A34: Manor Park | B34: MkRSqT | C34: 33
A35: Moathouse | B35: 7URcPj | C35: 34
A36: Moseley | B36: FHQ99Q | C36: 35
A37: Mount Nod | B37: t9C84k | C37: 36
A38: Parkgate | B38: vk7KgW1a | C38: 37
A39: Parkhill | B39: CDXegf | C39: 38
A40: Pearl Hyde | B40: j3MNSS1a | C40: 39
A41: Potters Green | B41: YEy8sy | C41: 40
A42: Radford Academy | B42: p43M6w1a | C42: 41
A43: Ravensdale | B43: APVTV2 | C43: 42
A44: Richard Lee | B44: hAt28j1a | C44: 43
A45: Sir Frank Whittle | B45: GX72Yc1a | C45: 44
A46: St. Christopher | B46: 47967b | C46: 45
A47: Southfields | B47: 5Wbz28 | C47: 46
A48: Sowe Valley | B48: CmbnbG | C48: 47
A49: Spon Gate | B49: kyX882 | C49: 48
A50: Stanton Bridge | B50: 334HJR1a | C50: 49
A51: Stivichall | B51: 7Qc6H3 | C51: 50
A52: Stoke | B52: 6R28Wf | C52: 51
A53: Stoke Heath | B53: abbM4V | C53: 52
A54: Templars | B54: X23zbq | C54: 53
A55: Whitley Abbey | B55: 64t3u4 | C55: 54
A56: Whitmore Park | B56: bY76ab | C56: 55
A57: Whoberley Hall | B57: Q6kTTB | C57: 56
A58: Willenhall Community | B58: rHAW8H | C58: 57
A59: Wyken Croft | B59: U4pEJ3 | C59: 58
A60: All Saints' CE | B60: BgJH5H | C60: 59
A61: All Souls' RC | B61: 5dQG7T | C61: 60
A62: Christ the King RC Primary | B62: AbcSYP1a | C62: 61
A63: Corpus Christi RC | B63: E446Hn1a | C63: 62
A64: St Laurance's CE Academy | B64: j877qE1a | C64: 63
A65: Good Shepherd RC | B65: ZX6bRM1a | C65: 64
A66: Holy Family RC | B66: y8FdX4 | C66: 65
A67: Leigh CE | B67: y5ZNQz1a | C67: 66
A68: Our Lady of the Assumption RC | B68: 6f89MQ | C68: 67
A69: Sacred Heart RC | B69: 4n6E5w1a | C69: 68
A70: St. Andrew's CE Infant | B70: zS5569 | C70: 69
A71: St. Anne's RC | B71: H2YK64 | C71: 70
A72: St. Augustine's RC | B72: cAb7FY1a | C72: 71
A73: St. Bartholomew's Academy | B73: CPKbKb1a | C73: 72
A74: St. Elizabeth's RC | B74: 2s47541a | C74: 73
A75: St. Gregory's RC | B75: YHzVS61a | C75: 74
A76: St. John Fisher RC | B76: G97Ncj1a | C76: 75
A77: St. John Vianney RC | B77: RkP3wb1a | C77: 76
A78: St. John's CE | B78: WV25551a | C78: 77
A79: St. Mary's & St. Benedict's RC | B79: hNW6cM | C79: 78
A80: St. Osburg's RC | B80: D7UP4r | C80: 79
A81: St. Patrick's RC | B81: 6bP7aV1a | C81: 80
A82: Sts. Peter & Paul RC | B82: K43Jb31a | C82: 81
A83: St. Thomas More RC | B83: Kc3rR81a | C83: 82
A84: Stretton CE Academy | B84: BMJT831a | C84: 83
A85: Walsgrave CE | B85: DM93SH1a | C85: 84

Sheet LoginPage

Sheet Funding Floor (hidden)
A1: ='Summary of Funding'!A1 -> Date Issued: 4th July 2022 | L1: ='Summary of Funding'!H1 -> Last amended: 1st July 2022
A2: COVENTRY CITY COUNCIL - PEOPLE'S DIRECTORATE
A3: ='Summary of Funding'!A3:H3 -> 2022/23 Funding Allocations for Schools | N3: ='Summary of Funding'!N3 -> 25
A4: Calculation of Funding Floor
A6: =VLOOKUP(("P"&N3),[5]Formula!$A$10:$X$96,3,FALSE) -> Howes | N6: Checks
I9: £ | L9: £
A11: 2020/21 Total funding allocated after MFL | L11: =VLOOKUP(("P"&$N$3),'[7]Funding Floor'!$A$3:$U$90,6,FALSE) -> 775536.0302 | N11: =VLOOKUP(("P"&$N$3),'[7]Funding Floor'!$A$3:$U$90,6,FALSE)-L11 -> 0
A13: Less:
A14: 2020/21 Mobility | I14: =VLOOKUP(("P"&$N$3),'[7]Funding Floor'!$A$3:$U$90,7,FALSE) -> 750.7516835 | J14: =VLOOKUP(("P"&$N$3),'[7]Funding Floor'!$A$3:$U$90,6,FALSE) -> 775536.0302 | N14: =VLOOKUP(("P"&$N$3),'[7]Funding Floor'!$A$3:$U$90,7,FALSE)-I14 -> 0
A16: 2020/21 Lump Sum | I16: =VLOOKUP(("P"&$N$3),'[7]Funding Floor'!$A$3:$U$90,8,FALSE) -> 110364.1 | J16: =VLOOKUP(("P"&$N$3),'[7]Funding Floor'!$A$3:$U$90,6,FALSE) -> 775536.0302 | N16: =VLOOKUP(("P"&$N$3),'[7]Funding Floor'!$A$3:$U$90,8,FALSE)-I16 -> 0
A18: 2020/21 Split Site | I18: =VLOOKUP(("P"&$N$3),'[7]Funding Floor'!$A$3:$U$90,9,FALSE) -> 0 | J18: =VLOOKUP(("P"&$N$3),'[7]Funding Floor'!$A$3:$U$90,6,FALSE) -> 775536.0302 | N18: =VLOOKUP(("P"&$N$3),'[7]Funding Floor'!$A$3:$U$90,9,FALSE)-I18 -> 0
A20: 2020/21 Rates Funding | I20: =VLOOKUP(("P"&$N$3),'[7]Funding Floor'!$A$3:$U$90,11,FALSE) -> 33516 | J20: =VLOOKUP(("P"&$N$3),'[7]Funding Floor'!$A$3:$U$90,6,FALSE) -> 775536.0302 | N20: =VLOOKUP(("P"&$N$3),'[7]Funding Floor'!$A$3:$U$90,11,FALSE)-I20 -> 0
A22: 2020/21 Education Improvement Commissioning Pot | I22: =VLOOKUP(("P"&$N$3),'[7]Funding Floor'!$A$3:$U$90,12,FALSE) -> 1518.285704 | J22: =VLOOKUP(("P"&$N$3),'[7]Funding Floor'!$A$3:$U$90,6,FALSE) -> 775536.0302 | L22: =-SUM(I14:I22) -> -146149.1374 | N22: =VLOOKUP(("P"&$N$3),'[7]Funding Floor'!$A$3:$U$90,12,FALSE)-I22 -> 0
A25: 2020/21 Pupil Led Funding | L25: =L11+L22 -> 629386.8929 | N25: =VLOOKUP(("P"&$N$3),'[7]Funding Floor'!$A$3:$U$90,15,FALSE)-L25 -> 0
A27: October 2019 Pupil Number | H27: [A] | I27: =VLOOKUP(("P"&$N$3),'[7]Funding Floor'!$A$3:$U$90,17,FALSE) -> 168 | J27: =VLOOKUP(("P"&$N$3),'[7]Funding Floor'!$A$3:$U$90,6,FALSE) -> 775536.0302 | N27: =VLOOKUP(("P"&$N$3),'[7]Funding Floor'!$A$3:$U$90,17,FALSE)-I27 -> 0
A29: 2020/21 Pupil Led Funding (per pupil) | H29: [B] | L29: =L25/I27 -> 3746.350553 | N29: =VLOOKUP(("P"&$N$3),'[7]Funding Floor'!$A$3:$U$90,18,FALSE)-L29 -> 0
A32: 2017/18 calculated Funding Floor (FF) per Pupil | I32: =VLOOKUP(("P"&$N$3),'[7]Funding Floor'!$A$3:$U$90,4,FALSE) -> 3910.721 | J32: =VLOOKUP(("P"&$N$3),'[7]Funding Floor'!$A$3:$U$90,6,FALSE) -> 775536.0302 | N32: =VLOOKUP(("P"&$N$3),'[7]Funding Floor'!$A$3:$U$90,4,FALSE)-I32 -> 0
A34: 2020/21 Funding Floor protection level | I34: 0.01
A36: Funding Floor per pupil | H36: [C] | L36: =I32*(1+I34) -> 3949.82821
A38: Shortfall to Funding Floor per pupil | H38: [D] = [C] - [B] | L38: =IF(L29<L36,L36-L29,0) -> 203.4776573
A42: 2020/21 Funding Floor Adjustment | H42: = [A] x [D] | L42: =L38*I27 -> 34184.24643 | N42: =VLOOKUP(("P"&$N$3),'[7]Funding Floor'!$A$3:$U$90,21,FALSE)-L42 -> 0
